[Event "1st 4NCL International U2050"]
[Site "Telford"]
[Date "2018.11.03"]
[Round "6"]
[White "Di-Vetta, Andrew"]
[Black "Chen, Daniel Xingyu"]
[Result "0-1"]
[ECO "B31"]
[WhiteElo "1681"]
[BlackElo "1258"]
[Annotator "NA"]
[PlyCount "110"]
[EventDate "2018.10.31"]
[EventType "swiss"]
[EventCountry "GBR"]
[SourceTitle "playchess.com"]
[Source "ChessBase"]
[SourceQuality "1"]
[TimeControl "5400+30"]

1. e4 {[%emt 0:00:00]} c5 {[%emt 0:00:00]} 2. Nc3 {[%emt 0:00:00]} Nc6 {[%emt 0:00:00]} 3. Nf3 {[%emt 0:00:01]} g6 {[%emt 0:00:33]} 4. Bb5 {[%emt 0:00:11]} Bg7 {[%emt 0:00:49]} 5. O-O {[%emt 0:00:25]} e6 {[%emt 0:01:52]} 6. Re1 {[%emt 0:00:12]} Nge7 {[%emt 0:00:22]} 7. d3 {[%emt 0:04:10]} a6 {[%emt 0:00:24]} 8. Bxc6 {[%emt 0:00:54]} Nxc6 {[%emt 0:00:09]} 9. Bf4 {[%emt 0:01:08]} O-O {[%emt 0:04:16]} 10. Bd6 {[%emt 0:00:56]} Re8 {[%emt 0:02:19]} 11. e5 {[%emt 0:03:00]} b6 {[%emt 0:06:59]} 12. Ne4 {[%emt 0:02:33]} Bb7 {[%emt 0:02:26]} 13. c3 {[%emt 0:01:27]} Ne7 {[%emt 0:02:17]} 14. Nfd2 {[%emt 0:06:50]} Nc6 {[%emt 0:05:06]} 15. f4 {[%emt 0:00:27]} Ne7 {[%emt 0:00:37]} 16. Qe2 {[%emt 0:06:39]} Nd5 {[%emt 0:02:39]} 17. Qf2 {[%emt 0:00:51]} Bc6 {[%emt 0:02:15]} 18. a3 {[%emt 0:01:50]} f5 {[%emt 0:04:19]} 19. exf6 {[%emt 0:01:54]} Nxf6 {[%emt 0:00:57]} 20. Nxf6+ {[%emt 0:01:03]} Qxf6 {[%emt 0:00:29]} 21. Nc4 {[%emt 0:03:00]} Qf5 {[%emt 0:03:45]} 22. Rad1 {[%emt 0:04:03]} Qd5 {[%emt 0:05:36]} 23. Bc7 {[%emt 0:01:11]} Ra7 {[%emt 0:05:24]} 24. Bxb6 {[%emt 0:00:31]} Rb7 {[%emt 0:00:40]} 25. Bxc5 {[%emt 0:00:30]} Bf8 {[%emt 0:04:48]} 26. Re5 {[%emt 0:00:26]} Bxc5 {[%emt 0:00:36]} 27. Rxd5 {[%emt 0:01:12]} Bxf2+ {[%emt 0:00:15]} 28. Kxf2 {[%emt 0:00:02]} Bxd5 {[%emt 0:00:31]} 29. Rd2 {[%emt 0:02:30]} Bxc4 {[%emt 0:00:11]} 30. dxc4 {[%emt 0:00:05]} Rd8 {[%emt 0:00:36]} 31. b4 {[%emt 0:00:16]} Rc7 {[%emt 0:00:21]} 32. Rd4 {[%emt 0:00:29]} Kf7 {[%emt 0:00:28]} 33. Ke3 {[%emt 0:00:21]} Ke7 {[%emt 0:00:58]} 34. g4 {[%emt 0:00:25]} Rdc8 {[%emt 0:01:43]} 35. Kd3 {[%emt 0:00:20]} Rc6 {[%emt 0:00:38]} 36. c5 {[%emt 0:01:25]} d6 {[%emt 0:00:24]} 37. cxd6+ {[%emt 0:01:26]} Rxd6 {[%emt 0:00:09]} 38. Rxd6 {[%emt 0:01:02]} Kxd6 {[%emt 0:00:06]} 39. c4 {[%emt 0:00:08]} a5 {[%emt 0:00:50]} 40. Kd4 {[%emt 0:00:32]} Rf8 {[%emt 0:02:03]} 41. c5+ {[%emt 0:00:23]} Kc6 {[%emt 0:00:39]} 42. Ke5 {[%emt 0:01:17]} axb4 {[%emt 0:00:24]} 43. axb4 {[%emt 0:00:04]} Rb8 {[%emt 0:03:16]} 44. h4 {[%emt 0:03:53]} Rxb4 {[%emt 0:00:58]} 45. h5 {[%emt 0:00:10]} gxh5 {[%emt 0:00:23]} 46. gxh5 {[%emt 0:00:11]} Kxc5 {[%emt 0:00:21]} 47. h6 {[%emt 0:00:41]} Rd4 {[%emt 0:02:33]} 48. Kf6 {[%emt 0:01:33]} Rxf4+ {[%emt 0:00:09]} 49. Kg7 {[%emt 0:00:10]} Rh4 {[%emt 0:00:34]} 50. Kxh7 {[%emt 0:00:04]} Rxh6+ {[%emt 0:00:09]} 51. Kxh6 {[%emt 0:00:08]} Kd4 {[%emt 0:00:10]} 52. Kg5 {[%emt 0:00:17]} e5 {[%emt 0:00:05]} 53. Kg4 {[%emt 0:00:09]} e4 {[%emt 0:00:09]} 54. Kg3 {[%emt 0:00:24]} Ke3 {[%emt 0:00:15]} 55. Kg2 {[%emt 0:00:10]} Kd4 {[%emt 0:00:23]} 0-1

[Event "1st 4NCL International U2050"]
[Site "Telford"]
[Date "2018.11.03"]
[Round "6"]
[White "Burgoyne, Peter A"]
[Black "Bryant, Richard B E"]
[Result "1-0"]
[ECO "C00"]
[WhiteElo "1665"]
[BlackElo "1854"]
[Annotator "NA"]
[PlyCount "109"]
[EventDate "2018.10.31"]
[EventType "swiss"]
[EventCountry "GBR"]
[SourceTitle "playchess.com"]
[Source "ChessBase"]
[SourceQuality "1"]
[TimeControl "5400+30"]

1. e4 {[%emt 0:00:00]} e6 {[%emt 0:00:00]} 2. Nf3 {[%emt 0:00:00]} d5 {[%emt 0:00:00]} 3. e5 {[%emt 0:00:04]} c5 {[%emt 0:00:24]} 4. b4 {[%emt 0:00:23]} cxb4 {[%emt 0:00:35]} 5. d4 {[%emt 0:00:15]} Nc6 {[%emt 0:00:42]} 6. a3 {[%emt 0:00:22]} Bd7 {[%emt 0:01:16]} 7. axb4 {[%emt 0:00:42]} Bxb4+ {[%emt 0:00:08]} 8. c3 {[%emt 0:00:13]} Be7 {[%emt 0:00:53]} 9. Bd3 {[%emt 0:00:26]} f5 {[%emt 0:01:06]} 10. h4 {[%emt 0:02:33]} g6 {[%emt 0:03:54]} 11. g4 {[%emt 0:03:37]} Qb6 {[%emt 0:14:28]} 12. gxf5 {[%emt 0:02:52]} gxf5 {[%emt 0:08:52]} 13. Ng5 {[%emt 0:03:08]} h5 {[%emt 0:00:32]} 14. Be2 {[%emt 0:02:32]} Nh6 {[%emt 0:01:24]} 15. Bxh5+ {[%emt 0:01:57]} Kf8 {[%emt 0:02:04]} 16. Nh3 {[%emt 0:04:26]} Nf7 {[%emt 0:07:42]} 17. Nf4 {[%emt 0:03:54]} Ke8 {[%emt 0:00:24]} 18. Rg1 {[%emt 0:02:59]} Bf8 {[%emt 0:06:56]} 19. Rg6 {[%emt 0:05:15]} Ne7 {[%emt 0:02:44]} 20. Rf6 {[%emt 0:05:05]} Rh7 {[%emt 0:00:29]} 21. Bxf7+ {[%emt 0:02:46]} Kd8 {[%emt 0:00:59]} 22. Nxe6+ {[%emt 0:09:14]} Bxe6 {[%emt 0:03:22]} 23. Rxe6 {[%emt 0:02:01]} Qc7 {[%emt 0:03:32]} 24. Rd6+ {[%emt 0:01:23]} Kc8 {[%emt 0:00:05]} 25. Be6+ {[%emt 0:01:24]} Kb8 {[%emt 0:00:12]} 26. Qf3 {[%emt 0:13:33]} Rxh4 {[%emt 0:03:24]} 27. Bg5 {[%emt 0:04:33]} Re4+ {[%emt 0:00:23]} 28. Kd2 {[%emt 0:01:31]} Nc6 {[%emt 0:00:42]} 29. Bxf5 {[%emt 0:05:00]} Nxd4 {[%emt 0:05:29]} 30. cxd4 {[%emt 0:05:02]} Rxd4+ {[%emt 0:00:30]} 31. Bd3 {[%emt 0:00:55]} Bxd6 {[%emt 0:02:05]} 32. exd6 {[%emt 0:00:16]} Qxd6 {[%emt 0:01:20]} 33. Qg3 {[%emt 0:01:29]} Kc7 {[%emt 0:03:04]} 34. Nc3 {[%emt 0:00:27]} Qxg3 {[%emt 0:01:49]} 35. fxg3 {[%emt 0:00:04]} Rg4 {[%emt 0:00:37]} 36. Bf4+ {[%emt 0:01:39]} Kc6 {[%emt 0:01:24]} 37. Rc1 {[%emt 0:00:28]} Rgg8 {[%emt 0:08:59]} 38. Be2 {[%emt 0:00:49]} Rad8 {[%emt 0:03:32]} 39. Nb5+ {[%emt 0:00:26]} Kd7 {[%emt 0:00:28]} 40. Rc7+ {[%emt 0:00:56]} Ke6 {[%emt 0:00:43]} 41. Nd4+ {[%emt 0:00:41]} Kf6 {[%emt 0:01:08]} 42. Rxb7 {[%emt 0:00:20]} Ra8 {[%emt 0:03:14]} 43. Bh5 {[%emt 0:01:08]} Rg7 {[%emt 0:01:13]} 44. Rb5 {[%emt 0:01:51]} Rd8 {[%emt 0:01:04]} 45. Nf3 {[%emt 0:01:05]} Kf5 {[%emt 0:01:11]} 46. Nd4+ {[%emt 0:00:29]} Ke4 {[%emt 0:01:19]} 47. Ne6 {[%emt 0:00:28]} Rxg3 {[%emt 0:03:44]} 48. Bxg3 {[%emt 0:00:46]} Rg8 {[%emt 0:00:14]} 49. Rb3 {[%emt 0:00:41]} Kf5 {[%emt 0:01:19]} 50. Nd4+ {[%emt 0:00:44]} Kg5 {[%emt 0:00:16]} 51. Bf3 {[%emt 0:00:49]} Kf6 {[%emt 0:01:19]} 52. Bf2 {[%emt 0:00:37]} Ke5 {[%emt 0:00:22]} 53. Nc6+ {[%emt 0:00:27]} Kd6 {[%emt 0:00:06]} 54. Nxa7 {[%emt 0:00:20]} Ra8 {[%emt 0:00:08]} 55. Rd3 {[%emt 0:00:23]} 1-0

[Event "1st 4NCL International U2050"]
[Site "Telford"]
[Date "2018.11.03"]
[Round "6"]
[White "Parry, Jacques"]
[Black "Towers, Nigel S"]
[Result "1/2-1/2"]
[ECO "E11"]
[WhiteElo "1625"]
[BlackElo "1843"]
[Annotator "NA"]
[PlyCount "100"]
[EventDate "2018.10.31"]
[EventType "swiss"]
[EventCountry "GBR"]
[SourceTitle "playchess.com"]
[Source "ChessBase"]
[SourceQuality "1"]
[TimeControl "5400+30"]

1. d4 {[%emt 0:00:00]} Nf6 {[%emt 0:00:00]} 2. c4 {[%emt 0:00:12]} e6 {[%emt 0:00:00]} 3. Nf3 {[%emt 0:00:23]} Bb4+ {[%emt 0:00:00]} 4. Nbd2 {[%emt 0:00:49]} O-O {[%emt 0:04:53]} 5. a3 {[%emt 0:01:22]} Bxd2+ {[%emt 0:00:27]} 6. Nxd2 {[%emt 0:01:45]} d6 {[%emt 0:01:54]} 7. Nf3 {[%emt 0:03:38]} Nbd7 {[%emt 0:02:23]} 8. g3 {[%emt 0:03:23]} Ne4 {[%emt 0:10:50]} 9. Bg2 {[%emt 0:00:58]} f5 {[%emt 0:00:43]} 10. O-O {[%emt 0:01:26]} Ndf6 {[%emt 0:04:48]} 11. Nd2 {[%emt 0:01:52]} Qe7 {[%emt 0:06:25]} 12. f3 {[%emt 0:02:41]} Nxd2 {[%emt 0:00:24]} 13. Bxd2 {[%emt 0:00:49]} Re8 {[%emt 0:03:36]} 14. Bc3 {[%emt 0:06:10]} e5 {[%emt 0:06:36]} 15. dxe5 {[%emt 0:09:34]} dxe5 {[%emt 0:00:03]} 16. Bb4 {[%emt 0:01:15]} c5 {[%emt 0:02:43]} 17. Bc3 {[%emt 0:00:12]} Rd8 {[%emt 0:11:49]} 18. Qc2 {[%emt 0:01:54]} g6 {[%emt 0:09:20]} 19. Rad1 {[%emt 0:04:35]} Bd7 {[%emt 0:03:41]} 20. Rd2 {[%emt 0:03:00]} Bc6 {[%emt 0:02:09]} 21. Rfd1 {[%emt 0:01:30]} Rxd2 {[%emt 0:00:25]} 22. Qxd2 {[%emt 0:04:21]} Re8 {[%emt 0:04:31]} 23. Qd6 {[%emt 0:03:20]} Kf7 {[%emt 0:02:57]} 24. Qxe7+ {[%emt 0:04:52]} Rxe7 {[%emt 0:00:07]} 25. b3 {[%emt 0:06:20]} e4 {[%emt 0:08:29]} 26. Bxf6 {[%emt 0:03:33]} Kxf6 {[%emt 0:00:10]} 27. f4 {[%emt 0:00:14]} Rd7 {[%emt 0:01:40]} 28. Rxd7 {[%emt 0:00:21]} Bxd7 {[%emt 0:00:04]} 29. a4 {[%emt 0:01:42]} b6 {[%emt 0:02:20]} 30. e3 {[%emt 0:02:30]} Ke6 {[%emt 0:01:58]} 31. Kf2 {[%emt 0:01:41]} Kd6 {[%emt 0:00:38]} 32. Ke1 {[%emt 0:00:24]} Kc7 {[%emt 0:01:23]} 33. Kd2 {[%emt 0:00:58]} Kb7 {[%emt 0:01:07]} 34. Kc3 {[%emt 0:00:36]} Ka6 {[%emt 0:01:45]} 35. Kb2 {[%emt 0:02:45]} Ka5 {[%emt 0:01:09]} 36. Ka3 {[%emt 0:00:17]} a6 {[%emt 0:01:41]} 37. Bf1 {[%emt 0:01:09]} b5 {[%emt 0:00:24]} 38. axb5 {[%emt 0:02:48]} axb5 {[%emt 0:00:06]} 39. Be2 {[%emt 0:02:16]} b4+ {[%emt 0:00:28]} 40. Kb2 {[%emt 0:00:23]} Kb6 {[%emt 0:00:13]} 41. Kc1 {[%emt 0:03:01]} Kc7 {[%emt 0:00:19]} 42. Kd2 {[%emt 0:00:12]} Kd6 {[%emt 0:00:15]} 43. Ke1 {[%emt 0:01:22]} Ke7 {[%emt 0:00:26]} 44. Kf2 {[%emt 0:00:19]} Kf6 {[%emt 0:00:08]} 45. Kg2 {[%emt 0:01:53]} h6 {[%emt 0:00:47]} 46. Kf2 {[%emt 0:00:25]} g5 {[%emt 0:01:49]} 47. Kg2 {[%emt 0:00:55]} Be8 {[%emt 0:01:12]} 48. Kf2 {[%emt 0:00:32]} Bd7 {[%emt 0:00:39]} 49. Kg2 {[%emt 0:00:08]} Kg7 {[%emt 0:00:56]} 50. Kf2 {[%emt 0:00:29]} Kf6 {[%emt 0:00:21]} 1/2-1/2

[Event "1st 4NCL International U2050"]
[Site "Telford"]
[Date "2018.11.03"]
[Round "6"]
[White "Aubury, Benjamin"]
[Black "Gorgun, Aliriza Atif"]
[Result "0-1"]
[ECO "E73"]
[WhiteElo "1566"]
[BlackElo "1739"]
[Annotator "NA"]
[PlyCount "80"]
[EventDate "2018.10.31"]
[EventType "swiss"]
[EventCountry "GBR"]
[SourceTitle "playchess.com"]
[Source "ChessBase"]
[SourceQuality "1"]
[TimeControl "5400+30"]

1. d4 {[%emt 0:00:00]} Nf6 {[%emt 0:00:00]} 2. c4 {[%emt 0:00:00]} g6 {[%emt 0:00:00]} 3. Nc3 {[%emt 0:00:00]} Bg7 {[%emt 0:00:00]} 4. e4 {[%emt 0:00:00]} d6 {[%emt 0:00:00]} 5. Be2 {[%emt 0:00:09]} O-O {[%emt 0:00:08]} 6. h4 {[%emt 0:00:08]} c5 {[%emt 0:00:09]} 7. d5 {[%emt 0:00:06]} e6 {[%emt 0:00:05]} 8. h5 {[%emt 0:00:09]} exd5 {[%emt 0:00:20]} 9. exd5 {[%emt 0:00:08]} Re8 {[%emt 0:03:27]} 10. Kf1 {[%emt 0:00:01]} Ne4 {[%emt 0:01:22]} 11. Nxe4 {[%emt 0:02:51]} Rxe4 {[%emt 0:00:06]} 12. Bd3 {[%emt 0:00:28]} Re8 {[%emt 0:00:40]} 13. Nh3 {[%emt 0:10:46]} Nd7 {[%emt 0:16:59]} 14. hxg6 {[%emt 0:01:50]} fxg6 {[%emt 0:00:46]} 15. Ng5 {[%emt 0:01:04]} Nf6 {[%emt 0:01:28]} 16. Nxh7 {[%emt 0:14:38]} Nxh7 {[%emt 0:02:16]} 17. Bxg6 {[%emt 0:00:10]} Nf6 {[%emt 0:01:36]} 18. Bxe8 {[%emt 0:01:14]} Qxe8 {[%emt 0:00:09]} 19. a4 {[%emt 0:01:22]} Qg6 {[%emt 0:23:23]} 20. Rh4 {[%emt 0:12:37]} Bg4 {[%emt 0:17:15]} 21. f3 {[%emt 0:02:40]} Rf8 {[%emt 0:00:16]} 22. Kg1 {[%emt 0:01:57]} Ne4 {[%emt 0:12:34]} 23. Rxg4 {[%emt 0:01:52]} Qxg4 {[%emt 0:00:13]} 24. fxg4 {[%emt 0:00:39]} Bd4+ {[%emt 0:00:19]} 25. Qxd4 {[%emt 0:00:40]} cxd4 {[%emt 0:00:07]} 26. Bh6 {[%emt 0:00:51]} Rf6 {[%emt 0:03:38]} 27. g5 {[%emt 0:00:30]} Rf4 {[%emt 0:00:31]} 28. g6 {[%emt 0:02:14]} Rg4 {[%emt 0:00:05]} 29. Re1 {[%emt 0:00:49]} d3 {[%emt 0:00:33]} 30. Re3 {[%emt 0:01:27]} Rh4 {[%emt 0:02:54]} 31. g3 {[%emt 0:01:48]} d2 {[%emt 0:00:16]} 32. Rd3 {[%emt 0:03:16]} Rxh6 {[%emt 0:00:27]} 33. Kf1 {[%emt 0:01:48]} Rh1+ {[%emt 0:00:15]} 34. Ke2 {[%emt 0:00:17]} Re1+ {[%emt 0:00:06]} 35. Kf3 {[%emt 0:00:13]} d1=Q+ {[%emt 0:01:32]} 36. Rxd1 {[%emt 0:00:11]} Rxd1 {[%emt 0:00:03]} 37. Kxe4 {[%emt 0:00:08]} Kg7 {[%emt 0:00:28]} 38. Kf5 {[%emt 0:01:21]} Re1 {[%emt 0:00:14]} 39. c5 {[%emt 0:00:15]} Re5+ {[%emt 0:00:05]} 40. Kf4 {[%emt 0:00:12]} Rxd5 {[%emt 0:00:35]} 0-1

[Event "1st 4NCL International U2050"]
[Site "Telford"]
[Date "2018.11.03"]
[Round "7"]
[White "De Coverly, Roger D"]
[Black "Aubury, Benjamin"]
[Result "1-0"]
[ECO "B11"]
[WhiteElo "1946"]
[BlackElo "1566"]
[Annotator "NA"]
[PlyCount "65"]
[EventDate "2018.10.31"]
[EventType "swiss"]
[EventCountry "GBR"]
[SourceTitle "playchess.com"]
[Source "ChessBase"]
[SourceQuality "1"]
[TimeControl "5400+30"]

1. e4 {[%emt 0:00:00]} c6 {[%emt 0:00:00]} 2. Nc3 {[%emt 0:00:00]} d5 {[%emt 0:00:04]} 3. Nf3 {[%emt 0:00:00]} Bg4 {[%emt 0:00:38]} 4. h3 {[%emt 0:00:13]} Bxf3 {[%emt 0:00:10]} 5. Qxf3 {[%emt 0:00:06]} Nf6 {[%emt 0:00:13]} 6. d3 {[%emt 0:01:31]} e6 {[%emt 0:01:15]} 7. Be2 {[%emt 0:01:32]} Nbd7 {[%emt 0:01:32] B11: Caro-Kann: Two Knights Variation} 8. O-O {[%emt 0:02:36]} (8. Qg3 g6 9. h4 h5 10. O-O Bg7 11. Bf4 Qb6 12. Rab1 Rc8 13. Bf3 Bh6 14. Bxh6 Rxh6 15. Rfe1 {1-0 (30) Mamedov,R (2709)-Dreev,A (2653) Riadh 2017}) 8... Bb4 {[%emt 0:02:51]} 9. Qg3 {[%emt 0:03:25]} Bxc3 {[%emt 0:03:02]} 10. bxc3 {[%emt 0:00:12]} dxe4 {[%emt 0:01:43]} 11. Qxg7 {[%emt 0:01:12]} Rg8 {[%emt 0:00:24]} 12. Qh6 {[%emt 0:01:02]} Qa5 {[%emt 0:00:46]} 13. Bd2 {[%emt 0:05:17]} exd3 $146 {[%emt 0:03:15]} ({Predecessor:} 13... O-O-O 14. c4 Qf5 15. Qe3 Rg6 16. dxe4 Nxe4 {½-½ (26) Soloviev,V-Flohr,S Moscow (Russia) 1955}) 14. cxd3 {[%emt 0:01:46]} Qd5 {[%emt 0:00:28]} 15. g3 {[%emt 0:02:43]} Rg6 {[%emt 0:03:24]} 16. Qe3 {[%emt 0:00:48]} Qf5 {[%emt 0:03:15]} 17. Kh2 {[%emt 0:03:44]} Nd5 {[%emt 0:01:54]} 18. Qf3 {[%emt 0:03:09]} Qxf3 {[%emt 0:00:53]} 19. Bxf3 {[%emt 0:00:06]} Ne5 {[%emt 0:00:25]} 20. Be2 {[%emt 0:03:02]} Nf6 {[%emt 0:04:10]} 21. f4 {[%emt 0:02:00]} Ned7 {[%emt 0:00:35]} 22. g4 {[%emt 0:08:44]} e5 {[%emt 0:07:00]} 23. g5 {[%emt 0:05:01]} Nd5 {[%emt 0:03:22]} 24. Bh5 {[%emt 0:01:53]} Rg7 {[%emt 0:00:43]} 25. fxe5 {[%emt 0:01:25]} Nxe5 {[%emt 0:01:49]} 26. Rae1 {[%emt 0:00:37]} O-O-O {[%emt 0:01:29]} 27. Rxe5 {[%emt 0:00:40]} Nb6 {[%emt 0:01:05]} 28. Bg4+ {[%emt 0:02:56]} Kb8 {[%emt 0:00:17]} 29. Bf4 {[%emt 0:01:49]} Ka8 {[%emt 0:00:12]} 30. d4 {[%emt 0:00:33]} Nc4 $18 {[%emt 0:00:20]} 31. Re7 {[%emt 0:00:59]} a5 {[%emt 0:00:50]} 32. Be5 {[%emt 0:02:08]} Rxg5 {[%emt 0:00:38]} 33. Rfxf7 {[%emt 0:01:34]} 1-0

[Event "1st 4NCL International U2050"]
[Site "Telford"]
[Date "2018.11.03"]
[Round "7"]
[White "Truman, Richard G"]
[Black "Gostelow, David W"]
[Result "1/2-1/2"]
[ECO "D15"]
[WhiteElo "1902"]
[BlackElo "1892"]
[Annotator "NA"]
[PlyCount "46"]
[EventDate "2018.10.31"]
[EventType "swiss"]
[EventCountry "GBR"]
[SourceTitle "playchess.com"]
[Source "ChessBase"]
[SourceQuality "1"]
[TimeControl "5400+30"]

1. d4 {[%emt 0:00:12]} d5 {[%emt 0:00:00]} 2. c4 {[%emt 0:00:09]} c6 {[%emt 0:00:00]} 3. Nf3 {[%emt 0:00:12]} Nf6 {[%emt 0:00:00]} 4. Nc3 {[%emt 0:01:07]} Bf5 {[%emt 0:00:00]} 5. cxd5 {[%emt 0:03:19]} Nxd5 {[%emt 0:01:59]} 6. Nh4 {[%emt 0:34:47] D15: Slav Defence: 4 Nc3 a6 and gambit lines after 4 Nc3 dxc4} (6. e3 e6 7. Bc4 Bg6 8. Ne5 Nd7 9. Nxg6 hxg6 10. g3 N5b6 11. Bb3 Qg5 12. e4 Qh5 13. Be3 Qxd1+ 14. Rxd1 Nf6 15. Ke2 {1-0 (31) Kuzubov,Y (2636)-Radibratovic,P (2327) Kragujevac 2015}) 6... e6 $146 {[%emt 0:09:20]} ({Predecessor:} 6... Bc8 7. e4 Nxc3 8. bxc3 e5 9. Nf3 exd4 10. cxd4 Bb4+ 11. Bd2 Qa5 12. Rb1 Bxd2+ 13. Qxd2 Qxd2+ 14. Kxd2 {1-0 (34) Pileckis,E (2457)-Labeckas,K (2348) Vilnius 2014}) 7. Nxf5 {[%emt 0:00:22]} exf5 {[%emt 0:00:05]} 8. g3 {[%emt 0:01:34]} Na6 {[%emt 0:09:05]} 9. Bg2 {[%emt 0:00:15]} Nac7 {[%emt 0:00:46]} 10. O-O {[%emt 0:00:51]} g6 {[%emt 0:02:29]} 11. e4 {[%emt 0:03:02]} fxe4 {[%emt 0:03:49]} 12. Nxe4 {[%emt 0:00:17]} Bg7 {[%emt 0:16:39]} 13. Nc5 {[%emt 0:03:23]} Rb8 {[%emt 0:01:27]} 14. Re1+ {[%emt 0:00:53]} Kf8 {[%emt 0:00:17]} 15. h4 {[%emt 0:17:41]} h6 {[%emt 0:06:34]} 16. Bh3 {[%emt 0:00:38]} Kg8 {[%emt 0:05:54]} 17. Nd7 {[%emt 0:00:44]} Ra8 {[%emt 0:00:12]} 18. Ne5 {[%emt 0:00:19]} Qd6 $1 {[%emt 0:10:47]} 19. h5 {[%emt 0:03:30]} Bxe5 {[%emt 0:04:58]} 20. dxe5 {[%emt 0:00:08]} Qe7 {[%emt 0:00:44]} 21. Qg4 {[%emt 0:01:55]} Kh7 {[%emt 0:02:06]} 22. Bd2 {[%emt 0:01:51]} Rhg8 $16 {[%emt 0:01:09]} 23. Rad1 {[%emt 0:04:23]} Rae8 {[%emt 0:00:37]} 1/2-1/2

[Event "1st 4NCL International U2050"]
[Site "Telford"]
[Date "2018.11.03"]
[Round "7"]
[White "Ansari, Athar"]
[Black "Somton, Anita"]
[Result "0-1"]
[ECO "B18"]
[WhiteElo "1898"]
[BlackElo "1795"]
[Annotator "NA"]
[PlyCount "50"]
[EventDate "2018.10.31"]
[EventType "swiss"]
[EventCountry "GBR"]
[SourceTitle "playchess.com"]
[Source "ChessBase"]
[SourceQuality "1"]
[TimeControl "5400+30"]

1. e4 {[%emt 0:00:00]} c6 {[%emt 0:00:00]} 2. d4 {[%emt 0:00:00]} d5 {[%emt 0:00:06]} 3. Nc3 {[%emt 0:01:18]} dxe4 {[%emt 0:00:19]} 4. Nxe4 {[%emt 0:00:19]} Bf5 {[%emt 0:00:23]} 5. Ng3 {[%emt 0:02:07]} Bg6 {[%emt 0:00:12]} 6. Nf3 {[%emt 0:01:17]} Nd7 {[%emt 0:00:30]} 7. Be2 {[%emt 0:02:57]} e6 {[%emt 0:01:51]} 8. O-O {[%emt 0:00:12]} Bd6 {[%emt 0:04:21]} 9. Nd2 {[%emt 0:00:45]} Ngf6 {[%emt 0:06:43]} 10. f4 {[%emt 0:00:16]} O-O {[%emt 0:05:30]} 11. Nc4 {[%emt 0:00:08]} Bc7 {[%emt 0:04:56]} 12. Ne5 {[%emt 0:00:23]} Nxe5 {[%emt 0:02:43]} 13. fxe5 {[%emt 0:01:04]} Nd5 {[%emt 0:01:45]} 14. c3 {[%emt 0:01:40] [#]} c5 $1 {[%emt 0:03:03]} 15. Bf3 {[%emt 0:02:55]} cxd4 {[%emt 0:02:29]} 16. cxd4 {[%emt 0:01:05]} Bb6 {[%emt 0:00:50]} 17. Be4 {[%emt 0:02:42]} Rc8 {[%emt 0:04:31]} 18. Bxg6 {[%emt 0:00:15]} fxg6 $19 {[%emt 0:03:00]} 19. Rxf8+ {[%emt 0:03:53]} Qxf8 {[%emt 0:00:31]} 20. Qg4 {[%emt 0:00:30]} Rc2 {[%emt 0:10:16]} 21. Ne2 {[%emt 0:05:18]} h5 {[%emt 0:07:25]} 22. Qxe6+ {[%emt 0:00:11]} Kh7 {[%emt 0:00:39]} 23. Qxd5 {[%emt 0:04:47]} Rxe2 {[%emt 0:00:25]} 24. Be3 {[%emt 0:02:29]} Rxe3 {[%emt 0:01:25]} 25. Qc4 {[%emt 0:01:04]} Rxe5 {[%emt 0:01:18]} 0-1

[Event "1st 4NCL International U2050"]
[Site "Telford"]
[Date "2018.11.03"]
[Round "7"]
[White "Bryant, Richard B E"]
[Black "Ward, Andrew"]
[Result "1-0"]
[ECO "B07"]
[WhiteElo "1854"]
[BlackElo "1790"]
[Annotator "NA"]
[PlyCount "67"]
[EventDate "2018.10.31"]
[EventType "swiss"]
[EventCountry "GBR"]
[SourceTitle "playchess.com"]
[Source "ChessBase"]
[SourceQuality "1"]
[TimeControl "5400+30"]

1. e4 {[%emt 0:00:00]} d6 {[%emt 0:00:00]} 2. d4 {[%emt 0:00:00]} Nf6 {[%emt 0:00:00]} 3. Nc3 {[%emt 0:00:33]} Nbd7 {[%emt 0:00:00]} 4. f4 {[%emt 0:01:47]} e5 {[%emt 0:00:00] B07: Pirc-Ufimzew-Verteidigung} 5. dxe5 {[%emt 0:00:48]} (5. Nf3 exd4 6. Nxd4 g6 7. Be2 Bg7 8. O-O O-O 9. Bf3 Re8 10. h3 c6 11. Kh1 Qc7 12. a4 a5 13. b3 Nc5 14. Re1 {0-1 (30) Volokitin,A (2628)-Bortnyk,O (2610) Riadh 2017}) 5... dxe5 {[%emt 0:00:05]} 6. Nf3 {[%emt 0:00:15]} Bb4 {[%emt 0:05:24]} ({Black should play} 6... Bd6 $11) 7. fxe5 {[%emt 0:02:36]} Nxe4 {[%emt 0:00:07]} 8. Qd4 {[%emt 0:00:50]} Bxc3+ {[%emt 0:05:07]} 9. bxc3 {[%emt 0:00:07]} Nec5 {[%emt 0:00:04]} 10. Ba3 $146 {[%emt 0:02:02]} ({Vorgänger:} 10. Bg5 Ne6 11. Bxd8 Nxd4 12. cxd4 Kxd8 {1-0 (26) Arp,F (2091)-Broekmeulen,J (1999) Roosendaal 2012}) 10... Ne6 {[%emt 0:04:06]} 11. Qe3 {[%emt 0:01:57]} c5 {[%emt 0:00:32]} 12. Bd3 {[%emt 0:03:42]} Qa5 {[%emt 0:01:19]} 13. Bb2 {[%emt 0:00:15]} Qb6 {[%emt 0:00:34]} 14. Rb1 {[%emt 0:00:35]} c4 {[%emt 0:00:40]} 15. Qxb6 {[%emt 0:00:30]} Nxb6 {[%emt 0:00:05]} 16. Bf5 {[%emt 0:02:54]} Ng5 {[%emt 0:14:54]} (16... O-O $15) 17. Nd4 {[%emt 0:06:00]} O-O {[%emt 0:01:24]} 18. O-O {[%emt 0:03:21]} Re8 {[%emt 0:01:07]} 19. Rbe1 {[%emt 0:02:40]} Na4 {[%emt 0:05:23]} 20. Bc1 {[%emt 0:01:38]} Ne6 {[%emt 0:01:06]} 21. Nb5 {[%emt 0:01:08]} Rd8 {[%emt 0:00:40]} 22. Nd6 {[%emt 0:11:58]} Nxc3 {[%emt 0:02:12]} 23. Rf3 $11 {[%emt 0:09:27]} (23. Bb2 $16 Na4 24. Ba3) 23... Nd5 {[%emt 0:00:23]} 24. Be4 {[%emt 0:02:33]} Nb6 {[%emt 0:01:48]} 25. Nxf7 {[%emt 0:03:11]} Rf8 {[%emt 0:04:53]} 26. Ref1 {[%emt 0:00:58]} Bd7 {[%emt 0:00:40]} 27. Bxb7 {[%emt 0:04:47]} Rab8 {[%emt 0:00:23]} 28. Ba3 {[%emt 0:01:42]} Nd4 {[%emt 0:00:28]} 29. Nh6+ {[%emt 0:00:59]} gxh6 {[%emt 0:00:19]} 30. Rf4 {[%emt 0:00:07]} Rf7 31. Rxf7 {[%emt 0:00:29]} Rc8 {[%emt 0:00:10]} 32. Rf8+ Rxf8 {[%emt 0:01:00]} 33. Rxf8+ {[%emt 0:00:42]} Kg7 {[%emt 0:00:04]} 34. Rf2 {[%emt 0:02:11]} 1-0